[Event "Titled Tuesday Blitz July 4 Early 2023"]
[White "Aanna12"]
[Black "Goncalves, Davi Sulzbacher"]
[BlackFideId "2154510"]
[WhiteElo "2074"]
[BlackElo "2441"]
[Result "0-1"]
[Round "2"]
[TimeControl "180+2"]
[Date "2023.07.04"]
[WhiteClock "0:00:00"]
[BlackClock "0:00:03"]
[Board "230"]

1. e4 {[%clk 0:02:59]}  c5 {[%clk 0:02:58]} 2. Nf3 {[%clk 0:02:55]}  d6 {[%clk 0:02:57]} 3. d3 {[%clk 0:02:55]}  g6 {[%clk 0:02:57]} 4. g3 {[%clk 0:02:55]}  Bg7 {[%clk 0:02:56]} 5. Bg2 {[%clk 0:02:55]}  Nc6 {[%clk 0:02:55]} 6. O-O {[%clk 0:02:55]}  Nf6 {[%clk 0:02:52]} 7. c3 {[%clk 0:02:55]}  O-O {[%clk 0:02:51]} 8. Re1 {[%clk 0:02:49]}  Rb8 {[%clk 0:02:16]} 9. d4 {[%clk 0:02:47]}  cxd4 {[%clk 0:02:15]} 10. cxd4 {[%clk 0:02:47]}  d5 {[%clk 0:02:15]} 11. e5 {[%clk 0:02:46]}  Ne4 {[%clk 0:02:15]} 12. Nc3 {[%clk 0:02:46]}  Nxc3 {[%clk 0:02:15]} 13. bxc3 {[%clk 0:02:46]}  Bf5 {[%clk 0:02:15]} 14. Bf4 {[%clk 0:02:41]}  Rc8 {[%clk 0:02:15]} 15. Qd2 {[%clk 0:02:18]}  Na5 {[%clk 0:02:11]} 16. Bh6 {[%clk 0:02:18]}  Qc7 {[%clk 0:01:53]} 17. Rac1 {[%clk 0:02:16]}  Nc4 {[%clk 0:01:39]} 18. Qf4 {[%clk 0:02:13]}  Be4 {[%clk 0:01:39]} 19. Bxg7 {[%clk 0:02:04]}  Kxg7 {[%clk 0:01:38]} 20. h4 {[%clk 0:02:01]}  h6 {[%clk 0:01:29]} 21. h5 {[%clk 0:01:43]}  f6 {[%clk 0:00:42]} 22. exf6+ {[%clk 0:01:19]}  Rxf6 {[%clk 0:00:39]} 23. Qxc7 {[%clk 0:01:19]}  Rxc7 {[%clk 0:00:39]} 24. Ne5 {[%clk 0:01:05]}  Nxe5 {[%clk 0:00:24]} 25. dxe5 {[%clk 0:01:05]}  Rfc6 {[%clk 0:00:19]} 26. Bxe4 {[%clk 0:01:02]}  dxe4 {[%clk 0:00:20]} 27. hxg6 {[%clk 0:01:01]}  Rxc3 {[%clk 0:00:19]} 28. Rxc3 {[%clk 0:00:58]}  Rxc3 {[%clk 0:00:19]} 29. Rxe4 {[%clk 0:00:58]}  Ra3 {[%clk 0:00:19]} 30. Rb4 {[%clk 0:00:54]}  b6 {[%clk 0:00:18]} 31. Rb2 {[%clk 0:00:49]}  Kxg6 {[%clk 0:00:18]} 32. Kg2 {[%clk 0:00:49]}  Kf5 {[%clk 0:00:18]} 33. Re2 {[%clk 0:00:46]}  h5 {[%clk 0:00:17]} 34. f3 {[%clk 0:00:40]}  b5 {[%clk 0:00:13]} 35. Rb2 {[%clk 0:00:29]}  a6 {[%clk 0:00:12]} 36. Re2 {[%clk 0:00:29]}  e6 {[%clk 0:00:10]} 37. Kf2 {[%clk 0:00:25]}  Kg5 {[%clk 0:00:07]} 38. Kg2 {[%clk 0:00:24]}  Kf5 {[%clk 0:00:02]} 39. Kf2 {[%clk 0:00:24]}  b4 {[%clk 0:00:02]} 40. Kg2 {[%clk 0:00:18]}  a5 {[%clk 0:00:03]} 41. Kf2 {[%clk 0:00:17]}  a4 {[%clk 0:00:03]} 42. Kg2 {[%clk 0:00:15]}  Rc3 {[%clk 0:00:03]} 43. Rb2 {[%clk 0:00:08]}  b3 {[%clk 0:00:04]} 44. axb3 {[%clk 0:00:07]}  axb3 {[%clk 0:00:05]} 45. Kh3 {[%clk 0:00:01]}  Rxf3 {[%clk 0:00:04]} 46. Kh4 {[%clk 0:00:00]}  Rc3 {[%clk 0:00:03]} 0-1


[Site "https://www.chess.com"]

[Event "Titled Tuesday Blitz July 4 Early 2023"]
[White "Ocelak, Jakub"]
[Black "Allam, Yara"]
[WhiteFideId "23707933"]
[BlackFideId "10615709"]
[WhiteElo "2440"]
[BlackElo "2070"]
[Result "1-0"]
[Round "2"]
[TimeControl "180+2"]
[Date "2023.07.04"]
[WhiteClock "0:00:10"]
[BlackClock "0:00:16"]
[Board "231"]

1. b3 {[%clk 0:03:00]}  d5 {[%clk 0:03:00]} 2. Bb2 {[%clk 0:02:59]}  c5 {[%clk 0:03:00]} 3. e3 {[%clk 0:02:58]}  Nc6 {[%clk 0:03:00]} 4. Bb5 {[%clk 0:02:58]}  Bd7 {[%clk 0:02:59]} 5. Nf3 {[%clk 0:02:58]}  e6 {[%clk 0:02:55]} 6. O-O {[%clk 0:02:57]}  Nf6 {[%clk 0:02:55]} 7. d3 {[%clk 0:02:57]}  Bd6 {[%clk 0:02:56]} 8. Nbd2 {[%clk 0:02:57]}  Qc7 {[%clk 0:02:55]} 9. Qe2 {[%clk 0:02:56]}  O-O {[%clk 0:02:53]} 10. Bxc6 {[%clk 0:02:54]}  Bxc6 {[%clk 0:02:52]} 11. e4 {[%clk 0:02:54]}  Nd7 {[%clk 0:02:34]} 12. h3 {[%clk 0:02:41]}  d4 {[%clk 0:02:29]} 13. a4 {[%clk 0:02:38]}  Ne5 {[%clk 0:02:20]} 14. Nxe5 {[%clk 0:02:33]}  Bxe5 {[%clk 0:02:20]} 15. Nc4 {[%clk 0:02:33]}  a6 {[%clk 0:02:11]} 16. a5 {[%clk 0:02:26]}  Bb5 {[%clk 0:02:09]} 17. Nxe5 {[%clk 0:01:55]}  Qxe5 {[%clk 0:02:08]} 18. f4 {[%clk 0:01:56]}  Qd6 {[%clk 0:02:06]} 19. f5 {[%clk 0:01:56]}  f6 {[%clk 0:02:01]} 20. fxe6 {[%clk 0:01:55]}  Qxe6 {[%clk 0:02:00]} 21. Rf5 {[%clk 0:01:55]}  Rac8 {[%clk 0:01:57]} 22. Raf1 {[%clk 0:01:51]}  Bd7 {[%clk 0:01:47]} 23. Qd2 {[%clk 0:01:42]}  Qf7 {[%clk 0:01:38]} 24. R5f4 {[%clk 0:01:41]}  Qg6 {[%clk 0:01:38]} 25. Kh2 {[%clk 0:01:39]}  Rfe8 {[%clk 0:01:35]} 26. Qf2 {[%clk 0:01:16]}  Re5 {[%clk 0:01:25]} 27. Bc1 {[%clk 0:01:16]}  Rce8 {[%clk 0:01:19]} 28. Bd2 {[%clk 0:01:15]}  Qh5 {[%clk 0:01:14]} 29. Qf3 {[%clk 0:01:12]}  Qxf3 {[%clk 0:01:10]} 30. R1xf3 {[%clk 0:01:13]}  Bc6 {[%clk 0:00:59]} 31. g4 {[%clk 0:01:10]}  h6 {[%clk 0:00:54]} 32. Rf5 {[%clk 0:01:05]}  Bd7 {[%clk 0:00:51]} 33. R5f4 {[%clk 0:01:02]}  Bc6 {[%clk 0:00:51]} 34. Rf2 {[%clk 0:01:03]}  Bd7 {[%clk 0:00:48]} 35. R4f3 {[%clk 0:01:01]}  Bc6 {[%clk 0:00:45]} 36. Bf4 {[%clk 0:01:01]}  R5e6 {[%clk 0:00:42]} 37. Bg3 {[%clk 0:01:01]}  Bd7 {[%clk 0:00:40]} 38. Rf5 {[%clk 0:00:57]}  Rc8 {[%clk 0:00:37]} 39. R5f3 {[%clk 0:00:42]}  Be8 {[%clk 0:00:33]} 40. Rf5 {[%clk 0:00:40]}  Bd7 {[%clk 0:00:31]} 41. Rd5 {[%clk 0:00:37]}  Be8 {[%clk 0:00:25]} 42. Rff5 {[%clk 0:00:33]}  Rec6 {[%clk 0:00:23]} 43. Bd6 {[%clk 0:00:30]}  Bf7 {[%clk 0:00:20]} 44. Rxc5 {[%clk 0:00:30]}  Rxc5 {[%clk 0:00:17]} 45. Rxc5 {[%clk 0:00:27]}  Rxc5 {[%clk 0:00:16]} 46. Bxc5 {[%clk 0:00:28]}  h5 {[%clk 0:00:13]} 47. Bxd4 {[%clk 0:00:26]}  hxg4 {[%clk 0:00:12]} 48. hxg4 {[%clk 0:00:27]}  Be6 {[%clk 0:00:12]} 49. Kg3 {[%clk 0:00:27]}  Kf7 {[%clk 0:00:13]} 50. Kf4 {[%clk 0:00:24]}  g5+ {[%clk 0:00:12]} 51. Kf3 {[%clk 0:00:25]}  Ke7 {[%clk 0:00:12]} 52. Bb2 {[%clk 0:00:22]}  Bd7 {[%clk 0:00:10]} 53. c4 {[%clk 0:00:21]}  Be6 {[%clk 0:00:10]} 54. d4 {[%clk 0:00:21]}  Bd7 {[%clk 0:00:10]} 55. d5 {[%clk 0:00:19]}  Bc8 {[%clk 0:00:10]} 56. b4 {[%clk 0:00:16]}  Bd7 {[%clk 0:00:10]} 57. Bc1 {[%clk 0:00:15]}  Be8 {[%clk 0:00:10]} 58. e5 {[%clk 0:00:15]}  Bd7 {[%clk 0:00:09]} 59. exf6+ {[%clk 0:00:14]}  Kxf6 {[%clk 0:00:10]} 60. Bb2+ {[%clk 0:00:15]}  Kg6 {[%clk 0:00:09]} 61. Be5 {[%clk 0:00:10]}  Be8 {[%clk 0:00:09]} 62. Ke4 {[%clk 0:00:09]}  Bd7 {[%clk 0:00:10]} 63. Kf3 {[%clk 0:00:09]}  Be8 {[%clk 0:00:10]} 64. Kg3 {[%clk 0:00:10]}  Bd7 {[%clk 0:00:10]} 65. Bd6 {[%clk 0:00:10]}  Be8 {[%clk 0:00:10]} 66. Bb8 {[%clk 0:00:10]}  Bd7 {[%clk 0:00:11]} 67. c5 {[%clk 0:00:10]}  Be8 {[%clk 0:00:11]} 68. Be5 {[%clk 0:00:10]}  Bd7 {[%clk 0:00:11]} 69. Kf3 {[%clk 0:00:10]}  Be8 {[%clk 0:00:11]} 70. Ke3 {[%clk 0:00:06]}  Bd7 {[%clk 0:00:12]} 71. Kd4 {[%clk 0:00:05]}  Bxg4 {[%clk 0:00:12]} 72. c6 {[%clk 0:00:05]}  bxc6 {[%clk 0:00:10]} 73. dxc6 {[%clk 0:00:06]}  Bc8 {[%clk 0:00:11]} 74. Kc5 {[%clk 0:00:06]}  Kf5 {[%clk 0:00:10]} 75. Bh2 {[%clk 0:00:06]}  g4 {[%clk 0:00:09]} 76. Kb6 {[%clk 0:00:06]}  Ke4 {[%clk 0:00:08]} 77. Kc7 {[%clk 0:00:07]}  Bf5 {[%clk 0:00:07]} 78. Kb8 {[%clk 0:00:05]}  Kf3 {[%clk 0:00:06]} 79. c7 {[%clk 0:00:06]}  g3 {[%clk 0:00:06]} 80. Bxg3 {[%clk 0:00:06]}  Kxg3 {[%clk 0:00:06]} 81. c8=Q {[%clk 0:00:07]}  Bxc8 {[%clk 0:00:07]} 82. Kxc8 {[%clk 0:00:08]}  Kf4 {[%clk 0:00:07]} 83. Kb7 {[%clk 0:00:08]}  Ke5 {[%clk 0:00:08]} 84. Kxa6 {[%clk 0:00:09]}  Kd6 {[%clk 0:00:08]} 85. b5 {[%clk 0:00:10]}  Kc7 {[%clk 0:00:09]} 86. Ka7 {[%clk 0:00:10]}  Kc8 {[%clk 0:00:09]} 87. b6 {[%clk 0:00:11]}  Kd7 {[%clk 0:00:10]} 88. b7 {[%clk 0:00:11]}  Kc6 {[%clk 0:00:11]} 89. b8=Q {[%clk 0:00:11]}  Kd5 {[%clk 0:00:11]} 90. Kb7 {[%clk 0:00:12]}  Ke4 {[%clk 0:00:12]} 91. a6 {[%clk 0:00:12]}  Kf3 {[%clk 0:00:13]} 92. a7 {[%clk 0:00:13]}  Kg2 {[%clk 0:00:14]} 93. a8=Q {[%clk 0:00:13]}  Kh1 {[%clk 0:00:15]} 94. Qa1+ {[%clk 0:00:11]}  Kg2 {[%clk 0:00:15]} 95. Qb2+ {[%clk 0:00:12]}  Kf3 {[%clk 0:00:15]} 96. Qf8+ {[%clk 0:00:11]}  Ke4 {[%clk 0:00:16]} 97. Qe7+ {[%clk 0:00:11]}  Kf5 {[%clk 0:00:16]} 98. Qee5+ {[%clk 0:00:11]}  Kg6 {[%clk 0:00:16]} 99. Qg2+ {[%clk 0:00:10]}  Kh7 {[%clk 0:00:16]} 100. Qgg7# {[%clk 0:00:10]} 1-0


[Site "https://www.chess.com"]

[Event "Titled Tuesday Blitz July 4 Early 2023"]
[White "Ho, In Hei Henry"]
[Black "Taboas Rodriguez, Daniel"]
[WhiteFideId "6002552"]
[BlackFideId "2208466"]
[WhiteElo "2069"]
[BlackElo "2439"]
[Result "1/2-1/2"]
[Round "2"]
[TimeControl "180+2"]
[Date "2023.07.04"]
[WhiteClock "0:00:09"]
[BlackClock "0:01:48"]
[Board "232"]

1. d4 {[%clk 0:03:00]}  d5 {[%clk 0:03:00]} 2. Nf3 {[%clk 0:03:01]}  c6 {[%clk 0:03:00]} 3. Bf4 {[%clk 0:03:00]}  Bf5 {[%clk 0:02:59]} 4. e3 {[%clk 0:03:00]}  e6 {[%clk 0:02:59]} 5. Bd3 {[%clk 0:03:01]}  Bd6 {[%clk 0:02:59]} 6. Bxf5 {[%clk 0:03:00]}  exf5 {[%clk 0:02:59]} 7. Bxd6 {[%clk 0:02:57]}  Qxd6 {[%clk 0:02:58]} 8. c3 {[%clk 0:02:55]}  Nd7 {[%clk 0:02:58]} 9. Qc1 {[%clk 0:02:54]}  Ngf6 {[%clk 0:02:58]} 10. Nbd2 {[%clk 0:02:53]}  O-O {[%clk 0:02:57]} 11. O-O {[%clk 0:02:53]}  f4 {[%clk 0:02:53]} 12. Re1 {[%clk 0:02:44]}  Rae8 {[%clk 0:02:52]} 13. exf4 {[%clk 0:02:39]}  Qxf4 {[%clk 0:02:53]} 14. Nf1 {[%clk 0:02:37]}  Qd6 {[%clk 0:02:48]} 15. Qg5 {[%clk 0:02:33]}  Ne4 {[%clk 0:02:48]} 16. Qh4 {[%clk 0:02:22]}  f5 {[%clk 0:02:46]} 17. Ng5 {[%clk 0:02:07]}  h6 {[%clk 0:02:35]} 18. Nxe4 {[%clk 0:01:57]}  fxe4 {[%clk 0:02:36]} 19. Re3 {[%clk 0:01:53]}  Rf4 {[%clk 0:02:36]} 20. Qh3 {[%clk 0:01:41]}  Ref8 {[%clk 0:02:34]} 21. Re2 {[%clk 0:01:35]}  Nf6 {[%clk 0:02:31]} 22. Ne3 {[%clk 0:01:31]}  Qd7 {[%clk 0:02:24]} 23. Qxd7 {[%clk 0:01:24]}  Nxd7 {[%clk 0:02:25]} 24. c4 {[%clk 0:01:16]}  Nb6 {[%clk 0:02:25]} 25. cxd5 {[%clk 0:01:10]}  Nxd5 {[%clk 0:02:25]} 26. Nxd5 {[%clk 0:01:06]}  cxd5 {[%clk 0:02:26]} 27. Rc1 {[%clk 0:01:06]}  R8f6 {[%clk 0:02:23]} 28. Rc8+ {[%clk 0:00:58]}  Kh7 {[%clk 0:02:23]} 29. Rd8 {[%clk 0:00:51]}  e3 {[%clk 0:02:20]} 30. Rxe3 {[%clk 0:00:35]}  Rxf2 {[%clk 0:02:18]} 31. h3 {[%clk 0:00:29]}  Rxb2 {[%clk 0:02:17]} 32. Re7 {[%clk 0:00:25]}  Rff2 {[%clk 0:02:07]} 33. Rxd5 {[%clk 0:00:23]}  Rxg2+ {[%clk 0:02:07]} 34. Kh1 {[%clk 0:00:23]}  Rh2+ {[%clk 0:02:07]} 35. Kg1 {[%clk 0:00:24]}  Rbg2+ {[%clk 0:02:08]} 36. Kf1 {[%clk 0:00:23]}  Rxa2 {[%clk 0:02:09]} 37. Kg1 {[%clk 0:00:21]}  Rag2+ {[%clk 0:02:05]} 38. Kf1 {[%clk 0:00:21]}  Rb2 {[%clk 0:02:06]} 39. Kg1 {[%clk 0:00:21]}  Rxh3 {[%clk 0:02:06]} 40. Rdd7 {[%clk 0:00:20]}  Rg3+ {[%clk 0:02:05]} 41. Kh1 {[%clk 0:00:19]}  a5 {[%clk 0:02:04]} 42. d5 {[%clk 0:00:18]}  a4 {[%clk 0:02:03]} 43. d6 {[%clk 0:00:17]}  a3 {[%clk 0:02:04]} 44. Rxb7 {[%clk 0:00:18]}  a2 {[%clk 0:01:53]} 45. Ra7 {[%clk 0:00:14]}  Rd3 {[%clk 0:01:53]} 46. Rxg7+ {[%clk 0:00:12]}  Kh8 {[%clk 0:01:51]} 47. Rh7+ {[%clk 0:00:12]}  Kg8 {[%clk 0:01:52]} 48. Rhg7+ {[%clk 0:00:13]}  Kf8 {[%clk 0:01:52]} 49. Rgf7+ {[%clk 0:00:11]}  Kg8 {[%clk 0:01:48]} 50. Rg7+ {[%clk 0:00:11]}  Kf8 {[%clk 0:01:48]} 51. Rgf7+ {[%clk 0:00:10]}  Kg8 {[%clk 0:01:48]} 52. Rg7+ {[%clk 0:00:09]} 1/2-1/2


[Site "https://www.chess.com"]

[Event "Titled Tuesday Blitz July 4 Early 2023"]
[White "Mickiewicz, Piotr"]
[Black "Guevara Sanchez, Erick Marvin"]
[WhiteFideId "1114891"]
[BlackFideId "6700136"]
[WhiteElo "2428"]
[BlackElo "2050"]
[Result "1-0"]
[Round "2"]
[TimeControl "180+2"]
[Date "2023.07.04"]
[WhiteClock "0:00:38"]
[BlackClock "0:01:02"]
[Board "237"]

1. c4 {[%clk 0:03:00]}  Nf6 {[%clk 0:03:00]} 2. Nf3 {[%clk 0:02:59]}  d6 {[%clk 0:02:59]} 3. d4 {[%clk 0:02:57]}  Nc6 {[%clk 0:02:57]} 4. Nc3 {[%clk 0:02:56]}  e5 {[%clk 0:02:57]} 5. d5 {[%clk 0:02:54]}  Nb8 {[%clk 0:02:55]} 6. e4 {[%clk 0:02:52]}  Be7 {[%clk 0:02:54]} 7. Be2 {[%clk 0:02:52]}  O-O {[%clk 0:02:53]} 8. O-O {[%clk 0:02:52]}  a5 {[%clk 0:02:48]} 9. Be3 {[%clk 0:02:50]}  Bd7 {[%clk 0:02:43]} 10. Nd2 {[%clk 0:02:49]}  c6 {[%clk 0:02:31]} 11. a3 {[%clk 0:02:23]}  cxd5 {[%clk 0:02:30]} 12. cxd5 {[%clk 0:02:23]}  Na6 {[%clk 0:02:30]} 13. Rb1 {[%clk 0:02:19]}  Rc8 {[%clk 0:02:28]} 14. Nc4 {[%clk 0:02:07]}  Nc5 {[%clk 0:02:25]} 15. f3 {[%clk 0:01:53]}  b5 {[%clk 0:02:17]} 16. Nd2 {[%clk 0:01:48]}  b4 {[%clk 0:02:16]} 17. Nb5 {[%clk 0:01:37]}  Rb8 {[%clk 0:02:10]} 18. a4 {[%clk 0:01:35]}  Ne8 {[%clk 0:02:03]} 19. Bxc5 {[%clk 0:01:23]}  dxc5 {[%clk 0:02:02]} 20. Nc4 {[%clk 0:01:08]}  Nd6 {[%clk 0:01:48]} 21. Nbxd6 {[%clk 0:01:06]}  Bxd6 {[%clk 0:01:47]} 22. Nxd6 {[%clk 0:01:07]}  b3 {[%clk 0:01:38]} 23. Bb5 {[%clk 0:01:05]}  Bxb5 {[%clk 0:01:32]} 24. Nxb5 {[%clk 0:01:04]}  c4 {[%clk 0:01:31]} 25. Qd2 {[%clk 0:01:01]}  Qb6+ {[%clk 0:01:30]} 26. Qf2 {[%clk 0:01:01]}  Qh6 {[%clk 0:01:28]} 27. Rfd1 {[%clk 0:00:59]}  Rfd8 {[%clk 0:01:27]} 28. g3 {[%clk 0:00:54]}  Qg5 {[%clk 0:01:22]} 29. Rbc1 {[%clk 0:00:53]}  Rbc8 {[%clk 0:01:19]} 30. Rc3 {[%clk 0:00:52]}  Qe7 {[%clk 0:01:18]} 31. Kg2 {[%clk 0:00:51]}  Qb4 {[%clk 0:01:17]} 32. Ra1 {[%clk 0:00:50]}  Rc5 {[%clk 0:01:17]} 33. Qe3 {[%clk 0:00:47]}  f5 {[%clk 0:01:15]} 34. Na7 {[%clk 0:00:42]}  fxe4 {[%clk 0:01:09]} 35. fxe4 {[%clk 0:00:41]}  Qb7 {[%clk 0:01:02]} 36. Qxc5 {[%clk 0:00:38]} 1-0


[Site "https://www.chess.com"]

[Event "Titled Tuesday Blitz July 4 Early 2023"]
[White "Gomes, Luiz Alexandre de Souza"]
[Black "Goughfather"]
[WhiteFideId "2102790"]
[WhiteElo "2425"]
[BlackElo "2032"]
[Result "0-1"]
[Round "2"]
[TimeControl "180+2"]
[Date "2023.07.04"]
[WhiteClock "0:01:04"]
[BlackClock "0:00:01"]
[Board "239"]

1. e4 {[%clk 0:02:53]}  c6 {[%clk 0:03:00]} 2. d4 {[%clk 0:02:51]}  d5 {[%clk 0:03:00]} 3. Nc3 {[%clk 0:02:51]}  dxe4 {[%clk 0:02:59]} 4. Nxe4 {[%clk 0:02:52]}  Nf6 {[%clk 0:03:00]} 5. Nxf6+ {[%clk 0:02:52]}  exf6 {[%clk 0:03:00]} 6. c3 {[%clk 0:02:52]}  Bd6 {[%clk 0:03:00]} 7. Bd3 {[%clk 0:02:53]}  O-O {[%clk 0:02:57]} 8. Qc2 {[%clk 0:02:54]}  h5 {[%clk 0:02:57]} 9. Ne2 {[%clk 0:02:54]}  Re8 {[%clk 0:02:43]} 10. Be3 {[%clk 0:02:54]}  Be6 {[%clk 0:02:26]} 11. O-O-O {[%clk 0:02:53]}  Na6 {[%clk 0:02:03]} 12. Kb1 {[%clk 0:02:52]}  Nc7 {[%clk 0:02:00]} 13. h3 {[%clk 0:02:51]}  Nd5 {[%clk 0:01:53]} 14. Bc1 {[%clk 0:02:28]}  Qa5 {[%clk 0:01:42]} 15. b3 {[%clk 0:02:24]}  b5 {[%clk 0:01:33]} 16. Rhg1 {[%clk 0:02:20]}  Rab8 {[%clk 0:01:10]} 17. g4 {[%clk 0:02:17]}  h4 {[%clk 0:01:09]} 18. g5 {[%clk 0:02:09]}  f5 {[%clk 0:01:09]} 19. g6 {[%clk 0:02:06]}  f6 {[%clk 0:01:01]} 20. Bd2 {[%clk 0:02:05]}  Qa3 {[%clk 0:00:43]} 21. Bxf5 {[%clk 0:01:58]}  Bxf5 {[%clk 0:00:41]} 22. Qxf5 {[%clk 0:01:59]}  Rxe2 {[%clk 0:00:34]} 23. Qh5 {[%clk 0:01:59]}  Nxc3+ {[%clk 0:00:33]} 24. Kc2 {[%clk 0:01:49]}  Nd5 {[%clk 0:00:10]} 25. Qxe2 {[%clk 0:01:44]}  Qxa2+ {[%clk 0:00:10]} 26. Kd3 {[%clk 0:01:43]}  Bb4 {[%clk 0:00:06]} 27. Qe6+ {[%clk 0:01:29]}  Kh8 {[%clk 0:00:06]} 28. Rge1 {[%clk 0:01:25]}  Qxb3+ {[%clk 0:00:06]} 29. Ke4 {[%clk 0:01:14]}  Bxd2 {[%clk 0:00:02]} 30. Rxd2 {[%clk 0:01:10]}  Qc3 {[%clk 0:00:02]} 31. Kf5 {[%clk 0:01:04]}  Qf3# {[%clk 0:00:01]} 0-1


[Site "https://www.chess.com"]

[Event "Titled Tuesday Blitz July 4 Early 2023"]
[White "Vargas, Mauricio"]
[Black "Zacurdajev, Dmitry"]
[WhiteFideId "4404572"]
[BlackFideId "4196309"]
[WhiteElo "1873"]
[BlackElo "2422"]
[Result "0-1"]
[Round "2"]
[TimeControl "180+2"]
[Date "2023.07.04"]
[WhiteClock "0:00:00"]
[BlackClock "0:00:05"]
[Board "242"]

1. e4 {[%clk 0:02:58]}  c6 {[%clk 0:02:59]} 2. Nc3 {[%clk 0:02:57]}  d5 {[%clk 0:03:00]} 3. d3 {[%clk 0:02:56]}  d4 {[%clk 0:02:58]} 4. Nce2 {[%clk 0:02:53]}  e5 {[%clk 0:02:58]} 5. g3 {[%clk 0:02:53]}  c5 {[%clk 0:02:58]} 6. Bg2 {[%clk 0:02:51]}  f6 {[%clk 0:02:56]} 7. f4 {[%clk 0:02:51]}  Nc6 {[%clk 0:02:55]} 8. Nf3 {[%clk 0:02:51]}  Be6 {[%clk 0:02:46]} 9. O-O {[%clk 0:02:49]}  Be7 {[%clk 0:02:32]} 10. h3 {[%clk 0:02:39]}  Qd7 {[%clk 0:02:30]} 11. Kh2 {[%clk 0:02:29]}  h5 {[%clk 0:02:18]} 12. f5 {[%clk 0:02:18]}  Bf7 {[%clk 0:02:18]} 13. Nh4 {[%clk 0:02:12]}  Rc8 {[%clk 0:01:54]} 14. a3 {[%clk 0:02:10]}  b5 {[%clk 0:01:53]} 15. Bd2 {[%clk 0:02:06]}  c4 {[%clk 0:01:50]} 16. Rc1 {[%clk 0:01:58]}  b4 {[%clk 0:01:32]} 17. axb4 {[%clk 0:01:57]}  Bxb4 {[%clk 0:01:30]} 18. Qe1 {[%clk 0:01:42]}  a5 {[%clk 0:01:21]} 19. Rf3 {[%clk 0:01:16]}  Nge7 {[%clk 0:01:09]} 20. c3 {[%clk 0:01:07]}  cxd3 {[%clk 0:01:05]} 21. Rxd3 {[%clk 0:01:04]}  Bc4 {[%clk 0:00:56]} 22. Rf3 {[%clk 0:00:57]}  dxc3 {[%clk 0:00:33]} 23. Nxc3 {[%clk 0:00:30]}  Nd4 {[%clk 0:00:29]} 24. Rf2 {[%clk 0:00:21]}  Nb3 {[%clk 0:00:12]} 25. Rd1 {[%clk 0:00:18]}  Nxd2 {[%clk 0:00:12]} 26. Rfxd2 {[%clk 0:00:17]}  Qc6 {[%clk 0:00:13]} 27. Nd5 {[%clk 0:00:12]}  Bxd2 {[%clk 0:00:11]} 28. Rxd2 {[%clk 0:00:09]}  Nxd5 {[%clk 0:00:06]} 29. exd5 {[%clk 0:00:06]}  Qb6 {[%clk 0:00:07]} 30. Ng6 {[%clk 0:00:05]}  Rh7 {[%clk 0:00:06]} 31. d6 {[%clk 0:00:04]}  Bb5 {[%clk 0:00:05]} 32. Qd1 {[%clk 0:00:01]}  Bd7 {[%clk 0:00:05]} 33. Bd5 {[%clk 0:00:00]}  Qc5 {[%clk 0:00:05]} 0-1


[Site "https://www.chess.com"]

[Event "Titled Tuesday Blitz July 4 Early 2023"]
[White "Skiadopoulos, Nikolaos"]
[Black "Urbina Perez, Juan Antonio"]
[WhiteFideId "4200772"]
[BlackFideId "2217368"]
[WhiteElo "1873"]
[BlackElo "2422"]
[Result "1-0"]
[Round "2"]
[TimeControl "180+2"]
[Date "2023.07.04"]
[WhiteClock "0:00:36"]
[BlackClock "0:00:39"]
[Board "243"]

1. e4 {[%clk 0:02:59]}  e5 {[%clk 0:02:57]} 2. Nf3 {[%clk 0:02:59]}  Nc6 {[%clk 0:02:57]} 3. Bc4 {[%clk 0:02:58]}  g6 {[%clk 0:02:56]} 4. d4 {[%clk 0:02:54]}  exd4 {[%clk 0:02:49]} 5. Nxd4 {[%clk 0:02:53]}  Bg7 {[%clk 0:02:49]} 6. Be3 {[%clk 0:02:51]}  Nge7 {[%clk 0:02:48]} 7. Nc3 {[%clk 0:02:50]}  O-O {[%clk 0:02:47]} 8. O-O {[%clk 0:02:50]}  Na5 {[%clk 0:02:39]} 9. Bd3 {[%clk 0:02:46]}  d5 {[%clk 0:02:38]} 10. Nb3 {[%clk 0:02:25]}  Nac6 {[%clk 0:02:25]} 11. exd5 {[%clk 0:02:24]}  Nxd5 {[%clk 0:02:26]} 12. Nxd5 {[%clk 0:02:24]}  Qxd5 {[%clk 0:02:27]} 13. c4 {[%clk 0:02:21]}  Qe5 {[%clk 0:02:17]} 14. Rb1 {[%clk 0:02:04]}  Rd8 {[%clk 0:02:17]} 15. Qc2 {[%clk 0:02:04]}  Rxd3 {[%clk 0:02:14]} 16. Qxd3 {[%clk 0:02:03]}  Bf5 {[%clk 0:02:15]} 17. Qe2 {[%clk 0:01:54]}  Bxb1 {[%clk 0:02:11]} 18. Rxb1 {[%clk 0:01:54]}  Rd8 {[%clk 0:02:09]} 19. Qf3 {[%clk 0:01:43]}  h5 {[%clk 0:02:05]} 20. h3 {[%clk 0:01:42]}  Qe6 {[%clk 0:01:48]} 21. Nc5 {[%clk 0:01:32]}  Qxc4 {[%clk 0:01:45]} 22. Nxb7 {[%clk 0:01:32]}  Rb8 {[%clk 0:01:42]} 23. Rc1 {[%clk 0:01:29]}  Qb5 {[%clk 0:01:35]} 24. Nc5 {[%clk 0:01:05]}  Ne5 {[%clk 0:01:28]} 25. Qe4 {[%clk 0:00:53]}  Re8 {[%clk 0:00:56]} 26. Bd4 {[%clk 0:00:41]}  Nd7 {[%clk 0:00:48]} 27. Qxe8+ {[%clk 0:00:39]}  Kh7 {[%clk 0:00:47]} 28. Nxd7 {[%clk 0:00:37]}  Bxd4 {[%clk 0:00:43]} 29. Nf8+ {[%clk 0:00:36]}  Kg7 {[%clk 0:00:39]} 30. Qxb5 {[%clk 0:00:36]} 1-0


[Site "https://www.chess.com"]

[Event "Titled Tuesday Blitz July 4 Early 2023"]
[White "Marn, Jan"]
[Black "Castillo Pena, Patricia Evarista"]
[WhiteFideId "14619245"]
[BlackFideId "6412106"]
[WhiteElo "2421"]
[BlackElo "1845"]
[Result "1-0"]
[Round "2"]
[TimeControl "180+2"]
[Date "2023.07.04"]
[WhiteClock "0:00:07"]
[BlackClock "0:00:00"]
[Board "244"]

1. e4 {[%clk 0:03:00]}  c5 {[%clk 0:02:56]} 2. b4 {[%clk 0:02:57]}  cxb4 {[%clk 0:02:56]} 3. a3 {[%clk 0:02:58]}  bxa3 {[%clk 0:02:52]} 4. d4 {[%clk 0:02:57]}  e6 {[%clk 0:02:51]} 5. Nf3 {[%clk 0:02:54]}  d5 {[%clk 0:02:48]} 6. e5 {[%clk 0:02:51]}  Nc6 {[%clk 0:02:47]} 7. Bxa3 {[%clk 0:02:50]}  Bxa3 {[%clk 0:02:42]} 8. Nxa3 {[%clk 0:02:50]}  Nge7 {[%clk 0:02:38]} 9. Nb5 {[%clk 0:02:50]}  O-O {[%clk 0:02:35]} 10. Bd3 {[%clk 0:02:44]}  a6 {[%clk 0:02:33]} 11. O-O {[%clk 0:02:41]}  Nb4 {[%clk 0:02:30]} 12. Be2 {[%clk 0:02:39]}  Nf5 {[%clk 0:02:21]} 13. c3 {[%clk 0:02:35]}  Nc6 {[%clk 0:02:11]} 14. Bd3 {[%clk 0:02:15]}  Bd7 {[%clk 0:02:09]} 15. Bxf5 {[%clk 0:01:55]}  axb5 {[%clk 0:02:06]} 16. Rxa8 {[%clk 0:01:54]}  Qxa8 {[%clk 0:02:06]} 17. Bxh7+ {[%clk 0:01:40]}  Kxh7 {[%clk 0:02:05]} 18. Ng5+ {[%clk 0:01:41]}  Kg6 {[%clk 0:01:40]} 19. f4 {[%clk 0:01:12]}  f5 {[%clk 0:01:20]} 20. exf6 {[%clk 0:01:10]}  gxf6 {[%clk 0:01:19]} 21. Qd3+ {[%clk 0:01:03]}  f5 {[%clk 0:01:15]} 22. Qg3 {[%clk 0:01:03]}  Rg8 {[%clk 0:01:00]} 23. Nxe6+ {[%clk 0:00:53]}  Kf6 {[%clk 0:00:57]} 24. Ng5 {[%clk 0:00:46]}  b4 {[%clk 0:00:42]} 25. Re1 {[%clk 0:00:14]}  bxc3 {[%clk 0:00:30]} 26. Qh4 {[%clk 0:00:14]}  Qa7 {[%clk 0:00:13]} 27. Ne4+ {[%clk 0:00:06]}  Kf7 {[%clk 0:00:00]} 28. Qf6+ {[%clk 0:00:07]} 1-0


[Site "https://www.chess.com"]